Cogmind - Beta 17.1 @@@ ROGUE MODE // 2026.09.12 @ 21:36:56 Player: SPACEGOAT Result: Destroyed by D-53 Grenadier with Mini Grenade Launcher Performance ------------- Evolutions (0) 0 Regions Visited (4) 800 Robots Destroyed (10) 50 Value Destroyed (154) 154 Prototype IDs (0) 0 Alien Tech Used (0) 0 Bonus (-18) -18 TOTAL SCORE: 986 Bonus ------- Friendly Fire -18 Cogmind --------- Core Integrity 0/250 Matter 262/300 Energy 98/100 System Corruption 7% Temperature Cool (0) Movement Core (50) Location -9/Mines Parts ------- > --- POWER (1) -------- (None) > --- PROPULSION (2) --- (None) > --- UTILITY (2) ------ (None) > --- WEAPON (2) ------- Makeshift Sword > --- INVENTORY (5) ---- Improved Terrain Scanner Seismic Detector Targeting Computer Assault Rifle Peak State ------------ > --- POWER ------------ Light Ion Engine > --- PROPULSION ------- Aluminum Leg Aluminum Leg > --- UTILITY ---------- Improved Terrain Scanner Seismic Detector > --- WEAPON ----------- Medium Laser Rocket Launcher > --- INVENTORY -------- Improved Terrain Scanner Seismic Detector Targeting Computer Assault Rifle Makeshift Sword [Rating: 11] Favorites ----------- Power Light Ion Engine Engine Light Ion Engine Propulsion Aluminum Leg Leg Aluminum Leg Utility Improved Terrain Scanner Device Improved Terrain Scanner Weapon Medium Laser Energy Gun Medium Laser Ballistic Gun Assault Rifle Launcher Rocket Launcher Slashing Weapon Makeshift Sword Build | -11 -10 -10 -10 -9 ------- Run | Yrd Mat Min Exi Min Slots Evolved . | . . . . . Power . | . . . . . Propulsion . | . . . . . Utility . | . . . . . Weapon . | . . . . . Parts Attached 16 | 7 1 5 . 3 Power 2 | 1 . 1 . . Engine 2 | 1 . 1 . . Core . | . . . . . Reactor . | . . . . . Propulsion 5 | 2 . 2 . 1 Treads . | . . . . . Leg 5 | 2 . 2 . 1 Wheel . | . . . . . Hover . | . . . . . Flight . | . . . . . Utility 3 | 2 . 1 . . Device 3 | 2 . 1 . . Storage . | . . . . . Processor . | . . . . . Hackware . | . . . . . Protection . | . . . . . Artifact . | . . . . . Weapon 6 | 2 1 1 . 2 Energy Gun 1 | 1 . . . . Energy Cannon . | . . . . . Ballistic Gun 2 | 1 1 . . . Ballistic Cannon . | . . . . . Launcher 2 | . . 1 . 1 Special Weapon . | . . . . . Impact Weapon . | . . . . . Slashing Weapon 1 | . . . . 1 Piercing Weapon . | . . . . . Special Melee Weapon . | . . . . . Unidentified Prototypes . | . . . . . Parts Lost 9 | . . 1 . 8 Power 1 | . . . . 1 Propulsion 3 | . . . . 3 Utility 3 | . . 1 . 2 Weapon 2 | . . . . 2 Highest Loss Streak 8 | . . 1 . 8 To Critical Strikes . | . . . . . Average Backups 4 | . 4 4 5 4 Power . | . . . . . Propulsion . | . . . . . Utility 2 | . 2 2 3 3 Weapon 1 | . 1 2 2 1 Tool/Special . | . . . . . Unused Backups 3 | . . . . 3 Power . | . . . . . Propulsion . | . . . . . Utility 3 | . . . . 3 Weapon . | . . . . . Tool/Special . | . . . . . Average Slot Usage (%) 98 | . 100 100 100 83 Engine 13 | . 14 14 14 11 Leg 27 | . 28 28 28 21 Device 27 | . 28 28 28 22 Energy Gun 13 | . 14 14 14 11 Ballistic Gun 13 | . 14 13 14 7 Peak Build Rating 11 | 9 9 9 9 11 Average Rating 8 | 7 9 8 9 8 On Entrance 7 | . 9 9 9 9 Avg Prop Armor Cover (%) . | . . . . . Naked Turns . | . . . . . Heaviest Build 11 | 8 9 9 9 11 Greatest Support 20 | 20 20 20 20 20 Greatest Overweight (x) 2 | 1 . . . 2 Average Overweight (x) . | . . . . . Largest Inventory Capacity 5 | 5 5 5 5 5 Average Capacity 5 | 5 5 5 5 5 Most Carried 5 | 3 5 5 5 5 Average Carried 4 | . 4 4 5 4 Final Capacity 5 | 5 5 5 5 5 Final Carried 5 | 3 5 5 5 4 Class Distribution -------------------- 73% | Scavenger-Mutant 26% | Mutant Dominant Class ---------------- Mutant | -10/Materials Scavenger-Mutant | -10/Mines Scavenger-Mutant | -10/Exiles Scavenger-Mutant | -9/Mines Resources | -11 -10 -10 -10 -9 ----------- Run | Yrd Mat Min Exi Min Matter Collected 483 | 278 . 165 . 40 Remotely . | . . . . . Salvage Created 307 | 83 . 208 . 16 Parts 17 | 10 . 7 . . Haulers Intercepted . | . . . . . Recyclers Shooed 2 | . . 2 . . Parts Field Recycled . | . . . . . Retrieved Matter . | . . . . . Parts Self-Destructed . | . . . . . Prevented . | . . . . . Parts Restored . | . . . . . Kills | -11 -10 -10 -10 -9 ------- Run | Yrd Mat Min Exi Min Combat Hostiles Destroyed 17 | . . 5 . 12 Guns 2 | . . 2 . . AOE 15 | . . 3 . 12 Classes Destroyed 5 | 2 . 2 . 1 Tunneler 3 | 2 . 1 . . Recycler 2 | 1 . 1 . . Swarmer 3 | . . 3 . . Grunt 2 | . . 2 . . Assembled 12 | . . . . 12 Best Kill Streak 12 | 2 . 3 . 12 Combat Bots Only 12 | . . 3 . 12 Max Kills in Single Turn 3 | 1 . 1 . 3 Gunslinging . | . . . . . Exploded 3 | . . 1 . 3 Melee . | . . . . . Uniques/NPCs Destroyed . | . . . . . Combat | -11 -10 -10 -10 -9 -------- Run | Yrd Mat Min Exi Min Hostile Shots Fired 58 | . . 29 . 29 Missed 20 | . . 11 . 9 Hits 38 | . . 18 . 20 Projectile 38 | . . 18 . 20 AOE 8 | . . . . 8 Damage Taken 896 | . . 260 . 636 Core 261 | . . 51 . 210 Absorbed by Shields . | . . . . . Core Remaining (%) 100 | 100 . . . . Volleys Fired 42 | 11 . 23 . 8 Largest 2 | 2 . 2 . 1 Hottest 70 | 70 . 70 . 33 Shots Fired 72 | 22 . 42 . 8 Gun 60 | 22 . 38 . . Cannon . | . . . . . Launcher 12 | . . 4 . 8 Special . | . . . . . Kinetic 30 | 11 . 19 . . Thermal 30 | 11 . 19 . . Explosive 12 | . . 4 . 8 Electromagnetic . | . . . . . Robot Hit Streak 8 | 6 . 8 . 2 Robot Miss Streak 3 | 3 . 2 . 3 Penetration Max . | . . . . . Secondary Targets . | . . . . . Shots Hit Robots 41 | 13 . 25 . 3 Core Hits 47 | 5 . 10 . 32 Critical Kills . | . . . . . Critical Parts Destroyed . | . . . . . Critical Strikes 1 | . . 1 . . Burn 1 | . . 1 . . Melee Attacks . | . . . . . Impact . | . . . . . Slashing . | . . . . . Piercing . | . . . . . Sneak Attacks . | . . . . . Combat Hostiles . | . . . . . Follow-up Attacks . | . . . . . Damage Inflicted 1476 | 129 . 486 . 861 Guns 417 | 129 . 288 . . Cannons . | . . . . . Explosions 1059 | . . 198 . 861 Melee . | . . . . . Ramming . | . . . . . Kinetic 193 | 42 . 151 . . Thermal 224 | 87 . 137 . . Explosive 1059 | . . 198 . 861 Electromagnetic . | . . . . . Impact . | . . . . . Slashing . | . . . . . Piercing . | . . . . . Highest Corruption 7 | . . . . 7 Average Corruption 7 | . . . . 7 Corruption Purged . | . . . . . Corruption Blocked . | . . . . . Overload Shots . | . . . . . Overflow Damage 9 | . . 9 . . Projectiles . | . . . . . Explosions 9 | . . 9 . . Melee . | . . . . . Knockbacks . | . . . . . Impact . | . . . . . Kinetic . | . . . . . Secondary . | . . . . . Self-Inflicted Damage 174 | . . 49 . 125 Shots 7 | . . 3 . 4 Rammed . | . . . . . Targets Rammed . | . . . . . Kicked . | . . . . . Crushed . | . . . . . Highest Temperature 147 | 60 . 147 . 16 Average Temperature 43 | 22 . 57 . 10 Received Heat Transfer 119 | . . 99 . 20 Siege Activations . | . . . . . Martial Activations . | . . . . . Shielding Activations . | . . . . . Robots Disrupted . | . . . . . Combat Hostiles . | . . . . . Robots Corrupted . | . . . . . Combat Hostiles . | . . . . . Parts Fried . | . . . . . Impact Corruptions . | . . . . . Robots Melted . | . . . . . Combat Hostiles . | . . . . . Parts Melted . | . . . . . Heat Transferred 740 | 259 . 481 . . Parts Sabotaged . | . . . . . Parts Stolen . | . . . . . Parts Stripped . | . . . . . Power Chain Reactions . | . . . . . Alert | -11 -10 -10 -10 -9 ------- Run | Yrd Mat Min Exi Min Maximum Alert Level . | . . . . . Low Security (%) 100 | 100 100 100 . 100 Level 1 . | . . . . . Level 2 . | . . . . . Level 3 . | . . . . . Level 4 . | . . . . . Level 5 . | . . . . . High Security . | . . . . . Max Security . | . . . . . Peak Influence 85 | 10 . 85 . 28 Initial . | . . . . . Average 14 | . . 24 . 2 Influence Increases 221 | 15 . 170 . 36 Destroy 0b10 Robot/C 100 | . . 100 . . Destroy 0b10 Robot/NC 25 | 15 . 10 . . Destroy Leader 20 | . . 20 . . Disable Machine 15 | . . 15 . . Destroy Structure 46 | . . 10 . 36 Lose Combat Pursuer 15 | . . 15 . . Influence Decreases 221 | 15 . 170 . 36 Time Decay 185 | 15 . 160 . 10 Lost Part 16 | . . 10 . 6 Lost Ally 20 | . . . . 20 Squads Dispatched . | . . . . . Investigation . | . . . . . Extermination . | . . . . . Reinforcement . | . . . . . Assault . | . . . . . Garrison . | . . . . . Intercept . | . . . . . Searches Triggered . | . . . . . Construction Impeded . | . . . . . Haulers Reinforced . | . . . . . Active Scanning Responses . | . . . . . Cargo Convoy Interrupts . | . . . . . Stealth | -11 -10 -10 -10 -9 --------- Run | Yrd Mat Min Exi Min Distress Signals . | . . . . . Communications Jammed . | . . . . . Distress Signals . | . . . . . Times Spotted 28 | . . 6 . 22 Peak Tracking Total 20 | . . 3 . 20 Tactical Retreats 2 | . . 1 . 1 Traps | -11 -10 -10 -10 -9 ------- Run | Yrd Mat Min Exi Min Traps Triggered . | . . . . . Indirectly . | . . . . . Trap Hack Attempts . | . . . . . Triggered . | . . . . . Disarmed . | . . . . . Reprogrammed . | . . . . . Reused . | . . . . . Traps Extracted . | . . . . . Installed . | . . . . . Triggered . | . . . . . Machines | -11 -10 -10 -10 -9 ---------- Run | Yrd Mat Min Exi Min Machines Disabled 1 | . . 1 . . Max in Single Turn 1 | . . 1 . . Machines Repaired . | . . . . . Machines Dismantled . | . . . . . Machines Sabotaged . | . . . . . Overloaded Fab Kills . | . . . . . Hacking | -11 -10 -10 -10 -9 --------- Run | Yrd Mat Min Exi Min Machines Accessed 5 | . 1 . 4 . Terminals 1 | . 1 . . . Fabricators . | . . . . . Repair Stations . | . . . . . Recycling Units . | . . . . . Scanalyzers . | . . . . . Garrison Access . | . . . . . Total Hacks 9 | . 5 . 4 . Successful 4 | . . . 4 . Failed 5 | . 5 . . . Catastrophic . | . . . . . Database Lockouts . | . . . . . Manual 5 | . 5 . . . Terminals 5 | . 5 . . . Fabricators . | . . . . . Repair Stations . | . . . . . Recycling Units . | . . . . . Scanalyzers . | . . . . . Garrison Access . | . . . . . Terminal Hacks 4 | . . . 4 . Record 4 | . . . 4 . Fabricator Hacks . | . . . . . Repair Station Hacks . | . . . . . Recycling Unit Hacks . | . . . . . Scanalyzer . | . . . . . Garrison Access Hacks . | . . . . . Unauthorized Hacks . | . . . . . Terminals . | . . . . . Fabricators . | . . . . . Repair Stations . | . . . . . Recycling Units . | . . . . . Scanalyzers . | . . . . . Garrison Access . | . . . . . Data Cores Recovered . | . . . . . Used . | . . . . . Hacking Detections 1 | . 1 . . . Full Trace Events . | . . . . . Feedback Events . | . . . . . Feedback Blocked . | . . . . . Robot Schematics Acquired . | . . . . . Robots Built . | . . . . . Authchips . | . . . . . Time . | . . . . . Total Robot Build Rating . | . . . . . Part Schematics Acquired . | . . . . . Parts Built . | . . . . . Authchips . | . . . . . Time . | . . . . . Total Part Build Rating . | . . . . . Part Studies Acquired . | . . . . . Parts Repaired . | . . . . . Time . | . . . . . Parts Recycled . | . . . . . Recycled Matter . | . . . . . Retrieved Matter . | . . . . . Retrieved Components . | . . . . . Parts Scanalyzed . | . . . . . Part Schematics Acquired . | . . . . . Parts Damaged . | . . . . . Bothacking | -11 -10 -10 -10 -9 ------------ Run | Yrd Mat Min Exi Min Used RIF Installer . | . . . . . Robots Hacked . | . . . . . Non-combat . | . . . . . Combat . | . . . . . Robot Hacks Applied . | . . . . . Relay Couplers Released . | . . . . . Fabnet Peak Effective % . | . . . . . Robots Rewired . | . . . . . Allies Hacked . | . . . . . Hacks Repelled . | . . . . . Allies | -11 -10 -10 -10 -9 -------- Run | Yrd Mat Min Exi Min Total Allies 1 | . . . . 1 Largest Group 1 | . . . . 1 Highest-Rated Group 31 | . . . . 31 Highest-Rated Ally 31 | . . . . 31 Total Orders . | . . . . . Ally Attacks 4 | . . . . 4 Total Damage 42 | . . . . 42 Kills 1 | . . . . 1 Allies Corrupted . | . . . . . Allies Melted . | . . . . . Intel | -11 -10 -10 -10 -9 ------- Run | Yrd Mat Min Exi Min Active Infowar (turns) 1448 | 93 92 472 697 94 Terrain 1448 | 93 92 472 697 94 Seismic 1431 | 90 92 466 697 86 Robot Analysis Total . | . . . . . Derelict Logs Recovered 1 | . . 1 . . Drone Launches . | . . . . . Drone Recoveries . | . . . . . Exploration | -11 -10 -10 -10 -9 ------------- Run | Yrd Mat Min Exi Min Turns Passed 1530 | 156 92 472 697 113 Spaces Moved 1124 | 99 73 279 581 92 Core 51 | 14 . . . 37 Treads . | . . . . . Legs 1073 | 85 73 279 581 55 Wheels . | . . . . . Hover . | . . . . . Flight . | . . . . . Fastest Speed 50 | 50 120 120 120 50 Average Speed 117 | 111 120 120 120 95 Slowest Speed 150 | 120 120 120 120 150 Overloaded Moves . | . . . . . Propulsion Burnouts . | . . . . . Robots Hopped . | . . . . . Potential Cave-ins . | . . . . . Cave-ins Triggered 1 | . . . . 1 Exploration Rate (%) 38 | 4 18 54 93 23 Regions Visited 4 Branch Regions 3 Pre-discovered Areas 1 | . . 1 . . Known Exits Taken . | . . . . . Unknown Exits Taken 4 | 1 1 1 1 . Scrap Searched 1 | . . . . 1 Spaces Dug . | . . . . . Terrain Destroyed 98 | . . 14 . 84 Melee . | . . . . . Projectile . | . . . . . AOE 98 | . . 14 . 84 Terrain Rammed . | . . . . . Walls Destroyed . | . . . . . Machines Disabled . | . . . . . Actions | -11 -10 -10 -10 -9 --------- Run | Yrd Mat Min Exi Min Total 1261 | 121 77 374 580 109 Wait 68 | 2 1 61 . 4 Move 1120 | 98 72 278 580 92 Hop . | . . . . . Pick Up 8 | 3 2 2 . 1 Fast Attach 8 | 7 . . . 1 Attach 2 | . . 1 . 1 Detach . | . . . . . Swap 7 | . 1 5 . 1 Drop 6 | . 1 4 . 1 Fire 42 | 11 . 23 . 8 Melee . | . . . . . Ram . | . . . . . Kick . | . . . . . Crush . | . . . . . Escape Stasis . | . . . . . Rewire . | . . . . . Trap . | . . . . . Miscellaneous . | . . . . . Route ------- -11/Scrapyard -10/Materials -10/Mines -10/Exiles (discovered 2 exits: [*Min x2]) -9/Mines History --------- Turn | Location | Event 13 | -11/Scrapyard | Discovered new exit (range 15) 157 | -11/Scrapyard | Entered Materials 231 | -10/Materials | Discovered new exit (range 16) 249 | -10/Materials | Entered Mines 279 | -10/Mines | Found a Scrap Suit stashed away for nefarious purposes 300 | -10/Mines | Build established: Mutant 353 | -10/Mines | Learned location of Zion (-6) 629 | -10/Mines | Received a Rocket Launcher from a helpful Derelict 702 | -10/Mines | Build established: Scavenger-Mutant 715 | -10/Mines | Deemed a non-threat by the Exiles lab entrance 716 | -10/Mines | Discovered new exit (range 5) 721 | -10/Mines | Entered Exiles 721 | -10/Exiles | Found Exiles lab abandoned 1234 | -10/Exiles | Discovered new exit (range 14) 1401 | -10/Exiles | Discovered new exit (range 15) 1418 | -10/Exiles | Entered Mines 1421 | -9/Mines | Received a Mining Laser from a helpful Derelict 1458 | -9/Mines | A weapon hastily lodged in a ceiling crevice suddenly fell to the ground 1477 | -9/Mines | Assembled infested the area 1509 | -9/Mines | Core integrity fell below 50% 1512 | -9/Mines | Crushed by falling debris 1515 | -9/Mines | Core integrity fell below 20% 1526 | -9/Mines | Destroyed 12 combat bots 1531 | -9/Mines | Destroyed by D-53 Grenadier with Mini Grenade Launcher Last Messages --------------- Med. Laser destroyed. Acquired Carbon-fiber Leg. The unstable cave ceiling collapses. Crushed by falling debris. Imp. Terrain Scanner destroyed. System corrupted by crushing effect (+2). Carbon-fiber Leg destroyed. System corrupted by crushing effect (+5). The unstable cave ceiling collapses. Lgt. Ion Engine destroyed. R-06 Scavenger destroyed. as-24845 destroyed. Searching scrap... Found Shotgun. Found Power Shielding. Found EM Shotgun. Found Propulsion Shielding. Found 40 Matter. Acquired 40 matter. The unstable cave ceiling collapses. Map ----- +----------------------------------------------------+ | ??????####??# #????????# #??#?????? | | ?????????#??# ########## #????????? | | ????????????# #????????? | | ????????????############ #????????? | | ??????????#????#??#????# #?#??????? | | ???????#?#?????????????# #????????? | | ???????????#??????????## ###??????? | | ????????#???#?#??????## #####???? | | #????????????????????# ##??? | | ????????????????????## #??? | | ????????????????????# #??? | | ?????#??????????????# ### [ #??? | | ???????????????????## ##?## ##??? | | ???????????????????# #???####???? | | ????????#????#????## #####??????? | | ???????????#??#???## ## #######? | | ??????????????????# ## ## | | ?????????###??###?# "% | | ?????????# ?? #?# | | ???????#?# #??# #?## | | ?????????# #??# #??#### # | | ?????????# #??# ######## ! ! | | ?????????# ##?# [ % | | ????????## ### ########![ [ | | ???????## ##d#??#???# % | | ???????# @ d ##?????### | | ???????# """ #???????# | | ???????# """ #???????# # | | ??????## """ ##??????? | | ??????# #??????? | | ?????# ### ##??????# # | | ????# ###?## #???????## % ## | | ???# ##????## #??????# #? | | ???## #???????## #?????? ? | | ????###?????????# #?????? | | ????????????????# ##?????? ? | | ????????????????# #??????? ? | | ????????????????# #????????????? | | ????????????????## #????????????? | | ??????????????????# ##????????????? | | ???????????????????##?????????????? | | ??????????????????????????????????? | | ??????????????????????????????????? | | ??????????????????????????????????? | | ??????????????????????????????????? | | ??????????????????????????????????? | | ??????????????????????????????????? | | ??????????????????????????????????? | | ??????????????????????????????????? | | ??????????????????????????????????? | +----------------------------------------------------+ Best States ------------- Heat Dissipation 25 Energy Generation 10 Energy Capacity 125 Matter Stores 300 Matter Capacity 300 Sight Range 16 Terrain Scan Range 16 Terrain Scan Density 10 Evasion (%) 55 Item Schematics ----------------- None Robot Schematics ------------------ None Fabricated ------------ Nothing Repaired ---------- Nothing Studied --------- None Alien Tech Used ----------------- None Achievements -------------- None Challenges ------------ None Game ------ Seed HypervelocityAluminumCloak Manual? 0 Play Time 00:15:21 Cumulative 40.0 hours Start 2026.09.12 @ 21:21:15 End 2026.09.12 @ 21:36:56 Sessions 1 Manual Loads 0 Difficulty Rogue Special Mode None Game No. 45 Rogue 45 Adventurer 0 Explorer 0 Win Type - Total 0 Types 0/0/0/0/0/0/0/0/0/0 Lore% 17 Gallery% 25 Achievement% 18 Wizard Run 0 Options --------- Layout 1 ASCII 0 Keyboard 0 Movement Mouse Keybinds 0 Fullscreen 1 Font 20/SmallcapsGlow Map View 50x35 Zoom Use 0% Tactical HUD 0 Map Filters NONE Filters NONE Steam 1 RUN: 292ac361-d16f-4be4-861e-9c078d30119c